fUSD/lending_fUSD_20240819
["ID","MTS","AMOUNT","RATE_DAILY","PERIOD"]
[335272786,1724061046686,-500.0,0.00010988,2]
[335272787,1724061046696,-227.4502796,0.00010988,2]
[335272788,1724061046705,-500.0,0.00010988,2]
[335272789,1724061046714,-500.0,0.00010988,2]
[335272790,1724061046724,-500.0,0.00010988,2]
[335272791,1724061046733,-500.0,0.00010988,2]
[335272792,1724061046742,-500.0,0.00010988,2]
[335272793,1724061046752,-504.45,0.00010988,2]
[335272794,1724061046761,-526.96,0.00010988,2]
[335272795,1724061046770,-617.57,0.00010988,2]
[335272796,1724061046779,-500.0,0.00010988,2]
[335272797,1724061046788,-353.95,0.00010988,2]
[335272798,1724061046798,-5662.21,0.00010988,2]
[335272799,1724061046807,-500.0,0.00010988,2]
[335272800,1724061046816,-500.0,0.00010988,2]
[335272801,1724061046826,-506.07,0.00010988,2]
[335272802,1724061046835,-552.43,0.00010988,2]
[335272803,1724061046845,-1624.12,0.00010988,2]
[335272804,1724061046854,-2532.89,0.00010988,2]
[335272805,1724061046863,-5393.88,0.00010988,2]
[335272806,1724061046873,-246.51181744,0.00010988,2]
[335272807,1724061046882,-7150.55,0.00010988,2]
[335272808,1724061046891,-26572.13,0.00010988,2]
[335272809,1724061046901,-2446.31,0.00010988,2]
[335272810,1724061046911,-4745.32,0.00010988,2]
[335272811,1724061046920,-6287.49,0.00010988,2]
[335272812,1724061046929,-500.0,0.00010988,2]
[335272813,1724061046939,-3551.51,0.00010988,2]
[335272814,1724061046948,-6226.91,0.00010988,2]
[335272815,1724061046958,-155.06954776,0.00010989,2]
[335272816,1724061046967,-643.18,0.00010989,2]
[335272817,1724061046976,-643.18,0.00010989,2]
[335272818,1724061046986,-643.18,0.00010989,2]
[335272819,1724061046995,-643.18,0.00010989,2]
[335272820,1724061047004,-643.18,0.00010989,2]
[335272821,1724061047013,-643.18,0.00010989,2]
[335272822,1724061047023,-500.0,0.00010989,2]
[335272823,1724061047032,-412.16476721,0.00010989,2]
[335272824,1724061047044,-87.83523279,0.00010989,2]
[335272825,1724061047053,-540.98015317,0.00010989,2]
[335272826,1724061047063,-17.23461404,0.00010989,2]
[335272827,1724061047075,-560.1561149,0.00010989,2]
[335272828,1724061047084,-500.0,0.00010989,2]
[335272829,1724061047093,-190.07195404,0.00010989,2]
[335272830,1724061047105,-309.92804596,0.00010989,2]
[335272831,1724061047114,-500.0,0.00010989,2]
[335272832,1724061047123,-500.0,0.00010989,2]
[335272833,1724061047132,-500.0,0.00010989,2]
[335272834,1724061047142,-500.0,0.00010989,2]
[335272835,1724061047151,-2203.66,0.00010989,2]
[335272836,1724061047161,-500.0,0.00010989,2]
[335272837,1724061047171,-595.92959198,0.00010989,2]
[335272838,1724061144201,169.16548328,0.00010934,30]
[335272839,1724061159955,171.74,8.219e-05,2]
[335272840,1724061269037,1000.0,9.901e-05,2]
[335272841,1724061435477,861.65301288,9.749e-05,2]
[335272842,1724061497397,154.82,9.87e-05,2]
[335272843,1724061731513,172.66,8.219e-05,2]
[335272844,1724061772485,200.0,9.855e-05,2]
[335272862,1724061962415,177.15,9.822e-05,2]
[335272865,1724062139535,155.0,9.899e-05,2]
[335272871,1724062190642,150.0,9.899e-05,2]
[335272874,1724062231553,155.0,9.899e-05,2]
[335272885,1724062232095,-300.09116622,9.988e-05,2]
[335272886,1724062232104,-700.28055378,9.988e-05,2]
[335272887,1724062232129,-1643.0474574,9.988e-05,2]
[335272888,1724062232139,-155.0,9.999e-05,2]
[335272889,1724062232149,-357.91024172,0.00010009,2]
[335272890,1724062232159,-587.0,0.000103,5]
[335272891,1724062232168,-300.0,0.00010687,2]
[335272892,1724062232177,-51.24230088,0.00010687,2]
[335272893,1724062232188,-248.75769912,0.00010687,2]
[335272894,1724062232198,-690.44230088,0.00010688,2]
[335272895,1724062232209,-309.55769912,0.00010688,2]
[335272896,1724062232220,-2045.6822,0.00010688,2]
[335272897,1724062232230,-150.0,0.00010695,2]
[335272898,1724062232240,-500.0,0.00010696,2]
[335272899,1724062232249,-500.0,0.00010696,2]
[335272900,1724062232259,-224.41356406,0.00010696,2]
[335272901,1724062232268,-518.48251517,0.00010696,2]
[335272902,1724062232278,-500.0,0.00010696,2]
[335272903,1724062232287,-439.19860705,0.00010696,2]
[335272904,1724062232298,-424.93484166,0.00010696,2]
[335272905,1724062232309,-500.0,0.00010696,2]
[335272906,1724062232318,-4626.64200591,0.00010696,2]
[335272907,1724062232330,-413.40145919,0.00010696,2]
[335272908,1724062232340,-499.53344438,0.00010696,2]
[335272909,1724062232350,-514.76667388,0.00010696,2]
[335272910,1724062232360,-189.94,0.00010696,2]
[335272911,1724062232369,-300.0,0.000107,2]
[335272912,1724062232379,-357.17,0.000107,2]
[335272913,1724062232388,-1479.70968837,0.00010786,2]
[335272914,1724062232402,-4633.01478385,0.00010786,2]
[335272915,1724062232413,-1956.37593354,0.00010786,2]
[335272916,1724062232440,-361.36554768,0.00010786,2]
[335272917,1724062232472,-619.65012665,0.00010786,2]
[335272918,1724062235626,-781.99865427,0.00010786,2]
[335272919,1724062235824,-5687.19154647,0.00010786,2]
[335272922,1724062235835,-2792.48371917,0.00010786,2]
[335272924,1724062235845,-499.99,0.00010787,2]
[335272925,1724062235854,-500.0,0.00010788,2]
[335272927,1724062235864,-1134.5,0.00010788,2]
[335272929,1724062235873,-405.42754273,0.00010788,2]
[335272931,1724062235883,-706.98,0.00010788,2]
[335272933,1724062235893,-584.08,0.00010788,2]
[335272935,1724062235904,-364.09033518,0.00010788,2]
[335272937,1724062235915,-451.47966482,0.00010788,2]
[335272938,1724062235925,-500.0,0.00010793,2]
[335272940,1724062235937,-500.0,0.00010793,2]
[335272941,1724062235946,-500.0,0.00010798,2]
[335272943,1724062235955,-500.0,0.00010798,2]
[335272944,1724062235964,-176.80726679,0.00010841,2]
[335272946,1724062235974,-176.80726679,0.00010842,2]
[335272947,1724062235986,-176.80726679,0.00010842,2]
[335272949,1724062235995,-176.80726679,0.0001085,2]
[335272951,1724062236004,-292.76862131,0.00010852,2]
[335272952,1724062236014,-176.80726679,0.00010856,2]
[335272954,1724062236024,-1000.0,0.00010857,2]
[335272955,1724062236033,-510.811,0.00010857,2]
[335272957,1724062236042,-300.86437992,0.00010861,2]
[335272959,1724062236054,-230.63107152,0.00010861,2]
[335272960,1724062236063,-401.62337545,0.00010861,2]
[335272962,1724062236073,-176.80726679,0.00010863,2]
[335272964,1724062236082,-176.80726679,0.00010865,2]
[335272965,1724062236091,-176.80726679,0.00010871,2]
[335272967,1724062236101,-156.35060916,0.0001088,2]
[335272969,1724062236112,-35.56217084,0.0001088,2]
[335272970,1724062236122,-155.31499189,0.00010888,2]
[335272972,1724062236131,-1576.86283727,0.0001089,2]
[335272974,1724062236142,-3662.70716273,0.0001089,2]
[335272976,1724062236153,-2959.6,0.0001089,2]
[335272977,1724062236162,-5148.25711968,0.0001089,2]
[335272983,1724062238042,-40.83288032,0.0001089,2]
[335272984,1724062238053,-252.16128339,0.0001089,2]
[335272985,1724062238065,-274.94304713,0.0001089,2]
[335272986,1724062238075,-23511.92289497,0.00010891,2]
[335272987,1724062238086,-17003.49677262,0.00010891,2]
[335272988,1724062238097,-7035.46927457,0.00010891,2]
[335272989,1724062238114,-2945.03429366,0.00010891,2]
[335272990,1724062238125,-2111.13867946,0.00010891,2]
[335272991,1724062238136,-675.54813812,0.00010891,2]
[335272992,1724062238147,-17163.9444466,0.00010891,2]
[335272993,1724062238158,-328.76892769,0.00010893,2]
[335272994,1724062238168,-624.06534891,0.00010894,2]
[335272995,1724062238177,-500.0,0.00010894,2]
[335272996,1724062238186,-275.96098268,0.00010899,2]
[335272997,1724062238195,-164.14081487,0.00010899,2]
[335272998,1724062238204,-261.2282296,0.00010899,2]
[335272999,1724062238213,-261.22822956,0.00010899,2]
[335273000,1724062238223,-164.14081487,0.00010899,2]
[335273001,1724062238231,-261.22822956,0.00010899,2]
[335273002,1724062238240,-261.22822956,0.000109,2]
[335273003,1724062238250,-164.14081487,0.000109,2]
[335273004,1724062238259,-261.22822956,0.000109,2]
[335273005,1724062238268,-261.22822956,0.000109,2]
[335273006,1724062238277,-164.14081487,0.000109,2]
[335273007,1724062238286,-261.22822956,0.000109,2]
[335273008,1724062238299,-7081.44154091,0.000109,2]
[335273009,1724062238308,-265.18830286,0.000109,2]
[335273010,1724062238317,-828.37317843,0.000109,2]
[335273011,1724062238327,-1856.89085908,0.0001095,3]
[335273012,1724062238336,-614.81842237,0.00010957,2]
[335273013,1724062238346,-500.0,0.00010957,2]
[335273014,1724062238355,-500.0,0.00010957,2]
[335273015,1724062238365,-500.0,0.00010957,2]
[335273016,1724062238374,-500.0,0.00010957,2]
[335273017,1724062238383,-1652.75,0.00010957,2]
[335273018,1724062238393,-500.0,0.00010957,2]
[335273019,1724062238404,-500.0,0.00010957,2]
[335273020,1724062238413,-500.0,0.00010957,2]
[335273021,1724062238422,-500.0,0.00010957,2]
[335273022,1724062238431,-585.50492,0.00010957,2]
[335273023,1724062238440,-1119.81,0.00010957,2]
[335273025,1724062238450,-4823.6,0.00010957,2]
[335273026,1724062238459,-2110.74,0.00010957,2]
[335273027,1724062238469,-4494.9,0.00010957,2]
[335273028,1724062238478,-1420.33,0.00010957,2]
[335273029,1724062238487,-5767.75220403,0.00010957,2]
[335273030,1724062238661,-191.03779597,0.00010957,2]
[335273032,1724062238673,-12632.00038157,0.00010957,2]
[335273033,1724062238685,-1756.1694708,0.00010957,2]
[335273035,1724062238697,-518.3404091,0.00010957,2]
[335273037,1724062238709,-398.3830592,0.00010957,2]
[335273039,1724062238720,-6838.54667933,0.00010957,2]
[335273041,1724062238730,-2038.59,0.00010957,2]
[335273043,1724062238739,-3954.44,0.00010957,2]
[335273044,1724062238748,-5021.26,0.00010957,2]
[335273046,1724062238758,-200.94,0.00010959,2]
[335273048,1724062238767,-603.7,0.00010959,2]
[335273050,1724062238776,-500.0,0.00010975,2]
[335273052,1724062238786,-500.0,0.00010975,2]
[335273054,1724062238796,-500.0,0.00010976,2]
[335273056,1724062238805,-500.0,0.00010976,2]
[335273058,1724062238815,-578.03,0.00010976,2]
[335273060,1724062238824,-1312.75,0.00010976,2]
[335273062,1724062238834,-500.0,0.00010977,2]
[335273064,1724062238844,-1134.5,0.00010977,2]
[335273066,1724062238853,-706.98,0.00010977,2]
[335273068,1724062238862,-584.08,0.00010977,2]
[335273070,1724062238872,-815.57,0.00010977,2]
[335273072,1724062238881,-407.561,0.00010979,2]
[335273074,1724062238890,-283.22891222,0.00010979,2]
[335273077,1724062238909,-526.77108778,0.00010979,2]
[335273079,1724062238918,-556.0,0.00010979,2]
[335273081,1724062238927,-273.633,0.00010979,2]
[335273083,1724062238940,-764.0,0.00010979,2]
[335273085,1724062238949,-150.81,0.00010984,2]
[335273087,1724062238958,-500.0,0.00010985,2]
[335273089,1724062238967,-3050.68591222,0.00010985,2]
[335273091,1724062238980,-9257.565367,0.00010985,2]
[335273093,1724062238991,-1003.21370636,0.00010985,2]
[335273095,1724062239001,-343.85707999,0.00010985,2]
[335273098,1724062239025,-328.85944571,0.00010985,2]
[335273100,1724062239036,-795.2682055,0.00010985,2]
[335273102,1724062239047,-1007.38297438,0.00010985,2]
[335273234,1724062240309,-300.09116622,9.943e-05,2]
[335273236,1724062240319,-500.0,0.00010975,2]
[335273238,1724062240328,-105.56383378,0.00010985,2]
[335273240,1724062240339,-581.0,0.00010985,2]
[335273242,1724062240351,-3526.60347506,0.00010985,2]
[335273244,1724062240360,-150.81,0.00010987,2]
[335273246,1724062240369,-309.54725801,0.00010987,2]
[335273248,1724062240379,-500.0,0.00010987,2]
[335273250,1724062240388,-500.0,0.00010987,2]
[335273252,1724062240397,-320.93926693,0.00010987,2]
[335273254,1724062240408,-179.06073307,0.00010987,2]
[335273256,1724062240418,-500.0,0.00010987,2]
[335273258,1724062240426,-32.17926693,0.00010987,2]
[335273260,1724062240437,-284.23395,0.00010987,2]
[335273262,1724062240448,-183.58678307,0.00010987,2]
[335273263,1724062240457,-165.01321693,0.00010987,2]
[335273274,1724062240559,-334.98678307,0.00010987,2]
[335273276,1724062240568,-302.97524455,0.00010987,2]
[335273277,1724062240578,-500.0,0.00010987,2]
[335273279,1724062240587,-500.0,0.00010987,2]
[335273281,1724062240597,-644.81730005,0.00010987,2]
[335273283,1724062240606,-500.0,0.00010987,2]
[335273285,1724062240615,-500.0,0.00010987,2]
[335273287,1724062240625,-500.0,0.00010987,2]
[335273289,1724062240634,-500.0,0.00010987,2]
[335273291,1724062240644,-500.0,0.00010987,2]
[335273293,1724062240655,-142.61517729,0.00010987,2]
[335273297,1724062240684,-357.38482271,0.00010987,2]
[335273299,1724062240693,-500.0,0.00010987,2]
[335273301,1724062240703,-500.0,0.00010987,2]
[335273303,1724062240712,-500.0,0.00010987,2]
[335273305,1724062240722,-500.0,0.00010987,2]
[335273307,1724062240731,-500.0,0.00010987,2]
[335273309,1724062240740,-500.0,0.00010987,2]
[335273311,1724062240750,-500.0,0.00010987,2]
[335273313,1724062240760,-500.0,0.00010987,2]
[335273315,1724062240770,-500.0,0.00010987,2]
[335273317,1724062240780,-500.0,0.00010987,2]
[335273319,1724062240791,-500.0,0.00010987,2]
[335273321,1724062240801,-500.0,0.00010987,2]
[335273323,1724062240811,-500.0,0.00010987,2]
[335273325,1724062240821,-500.0,0.00010987,2]
[335273327,1724062240831,-500.0,0.00010987,2]
[335273329,1724062240842,-500.0,0.00010987,2]
[335273331,1724062240852,-500.0,0.00010987,2]
[335273333,1724062240861,-500.0,0.00010987,2]
[335273335,1724062240871,-500.0,0.00010987,2]
[335273337,1724062240881,-500.0,0.00010987,2]
[335273338,1724062240891,-500.0,0.00010987,2]
[335273340,1724062240907,-500.0,0.00010987,2]
[335273342,1724062240917,-500.0,0.00010987,2]
[335273344,1724062240927,-500.0,0.00010987,2]
[335273347,1724062240938,-500.0,0.00010987,2]
[335273349,1724062240947,-500.0,0.00010987,2]
[335273351,1724062240956,-500.0,0.00010987,2]
[335273353,1724062240966,-275.59010699,0.00010987,2]
[335273355,1724062240976,-500.0,0.00010987,2]
[335273357,1724062240985,-500.0,0.00010987,2]
[335273359,1724062240994,-500.0,0.00010987,2]
[335273360,1724062241004,-500.0,0.00010987,2]
[335273362,1724062241015,-500.0,0.00010987,2]
[335273364,1724062241025,-500.0,0.00010987,2]
[335273366,1724062241034,-611.43452986,0.00010987,2]
[335273368,1724062241043,-500.0,0.00010987,2]
[335273370,1724062241052,-500.0,0.00010987,2]
[335273372,1724062241061,-500.0,0.00010987,2]
[335273373,1724062241070,-500.0,0.00010987,2]
[335273375,1724062241079,-500.0,0.00010987,2]
[335273377,1724062241089,-500.0,0.00010987,2]
[335273379,1724062241098,-500.0,0.00010987,2]
[335273381,1724062241108,-500.0,0.00010987,2]
[335273383,1724062241118,-500.0,0.00010987,2]
[335273385,1724062241128,-500.0,0.00010987,2]
[335273387,1724062241138,-381.63528884,0.00010987,2]
[335273389,1724062241155,-118.36471116,0.00010987,2]
[335273391,1724062241171,-500.0,0.00010987,2]
[335273393,1724062241180,-500.0,0.00010987,2]
[335273395,1724062241190,-368.99115007,0.00010987,2]
[335273397,1724062241202,-131.00884993,0.00010987,2]
[335273399,1724062241212,-500.0,0.00010987,2]
[335273401,1724062241221,-500.0,0.00010987,2]
[335273403,1724062241230,-500.0,0.00010987,2]
[335273405,1724062241239,-500.0,0.00010987,2]
[335273407,1724062241248,-500.0,0.00010987,2]
[335273409,1724062241257,-56.74040129,0.00010987,2]
[335273411,1724062241268,-443.25959871,0.00010987,2]
[335273412,1724062241277,-500.0,0.00010987,2]
[335273413,1724062241286,-500.0,0.00010987,2]
[335273414,1724062241295,-500.0,0.00010987,2]
[335273416,1724062241305,-500.0,0.00010987,2]
[335273418,1724062241314,-255.18616229,0.00010987,2]
[335273420,1724062241325,-244.81383771,0.00010987,2]
[335273422,1724062241334,-500.0,0.00010987,2]
[335273424,1724062241342,-500.0,0.00010987,2]
[335273426,1724062241351,-500.0,0.00010987,2]
[335273428,1724062241360,-500.0,0.00010987,2]
[335273430,1724062241370,-235.90124488,0.00010987,2]
[335273432,1724062241379,-500.0,0.00010987,2]
[335273434,1724062241389,-500.0,0.00010987,2]
[335273435,1724062241398,-500.0,0.00010988,2]
[335273437,1724062241411,-500.0,0.00010988,2]
[335273439,1724062241420,-2959.6,0.00010988,2]
[335273441,1724062241429,-5189.09,0.00010988,2]
[335273443,1724062241439,-150.81,0.00010988,2]
[335273445,1724062241449,-150.81,0.00010988,2]
[335273447,1724062241458,-150.81,0.00010988,2]
[335273449,1724062241468,-150.81,0.00010988,2]
[335273451,1724062241477,-194.38440145,0.00010989,2]
[335273453,1724062241487,-500.0,0.00010989,2]
[335273455,1724062241496,-500.0,0.00010989,2]
[335273457,1724062241505,-200.0,0.00010989,2]
[335273459,1724062241515,-500.0,0.00010989,2]
[335273461,1724062241524,-500.0,0.00010989,2]
[335273463,1724062241533,-1134.5,0.00010989,2]
[335273465,1724062241542,-706.98,0.00010989,2]
[335273466,1724062241551,-584.08,0.00010989,2]
[335273468,1724062241560,-815.57,0.00010989,2]
[335273470,1724062241570,-500.0,0.00010989,2]
[335273472,1724062241579,-578.03,0.00010989,2]
[335273474,1724062241589,-1312.75,0.00010989,2]
[335273476,1724062241599,-4250.0,0.0001099,2]
[335273478,1724062241608,-79354.70512202,0.0001099,3]
[335273480,1724062241617,-500.0,0.00010992,2]
[335273482,1724062241627,-500.0,0.00010992,2]
[335273484,1724062241636,-701.6249723,0.00010992,2]
[335273499,1724062241796,-860.5160892,0.00010992,2]
[335273501,1724062241806,-1019.4072061,0.00010992,2]
[335273503,1724062241815,-1178.2983231,0.00010992,2]
[335273505,1724062241824,-1337.18944,0.00010992,2]
[335273507,1724062241834,-201.435534,0.00010992,2]
[335273509,1724062241843,-201.435534,0.00010992,2]
[335273510,1724062241852,-201.435534,0.00010992,2]
[335273511,1724062241861,-201.435534,0.00010992,2]
[335273512,1724062241872,-201.435534,0.00010992,2]
[335273513,1724062241881,-913.6052139,0.00010992,2]
[335273514,1724062241890,-900.1677409,0.00010992,2]
[335273515,1724062241902,-886.7302679,0.00010992,2]
[335273516,1724062241912,-873.2927948,0.00010992,2]
[335273517,1724062241921,-859.8553218,0.00010992,2]
[335273518,1724062241931,-500.0,0.00010992,2]
[335273519,1724062241944,-14678.94478732,0.00010992,2]
[335273520,1724062241953,-500.0,0.00010992,2]
[335273521,1724062241962,-500.0,0.00010993,2]
[335273522,1724062241971,-1652.75,0.00010993,2]
[335273523,1724062241981,-500.0,0.00010993,2]
[335273524,1724062241990,-2959.6,0.00010993,2]
[335273525,1724062242000,-5189.09,0.00010993,2]
[335273526,1724062242011,-500.0,0.00010993,2]
[335273528,1724062242020,-500.0,0.00010993,2]
[335273530,1724062242029,-500.0,0.00010993,2]
[335273532,1724062242038,-1119.81,0.00010993,2]
[335273533,1724062242049,-4823.6,0.00010993,2]
[335273535,1724062242058,-2110.74,0.00010993,2]
[335273537,1724062242067,-4494.9,0.00010993,2]
[335273539,1724062242076,-1420.33,0.00010993,2]
[335273541,1724062242086,-5958.79,0.00010993,2]
[335273543,1724062242095,-22143.44,0.00010993,2]
[335273545,1724062242105,-2038.59,0.00010993,2]
[335273547,1724062242114,-3954.44,0.00010993,2]
[335273548,1724062242123,-5021.26,0.00010993,2]
[335273550,1724062242133,-500.0,0.00010994,2]
[335273552,1724062242141,-500.0,0.00010994,2]
[335273554,1724062242152,-244.96740587,0.00010995,2]
[335273556,1724062242161,-927.0426869,0.00010995,2]
[335273558,1724062242170,-42152.124348,0.00010996,2]
[335273559,1724062242179,-500.0,0.00010996,2]
[335273561,1724062242188,-1134.5,0.00010996,2]
[335273563,1724062242197,-706.98,0.00010996,2]
[335273565,1724062242208,-584.08,0.00010996,2]
[335273567,1724062242217,-815.57,0.00010996,2]
[335273569,1724062242226,-500.0,0.00010997,2]
[335273571,1724062242236,-1652.75,0.00010997,2]
[335273573,1724062242247,-500.0,0.00010997,2]
[335273575,1724062242256,-500.0,0.00010997,2]
[335273577,1724062242266,-500.0,0.00010997,2]
[335273579,1724062242275,-500.0,0.00010997,2]
[335273581,1724062242285,-170.54815316,0.00010997,2]
[335273583,1724062242294,-1119.81,0.00010997,2]
[335273585,1724062242303,-500.0,0.00010997,2]
[335273587,1724062242312,-4823.6,0.00010997,2]
[335273589,1724062242322,-2110.74,0.00010997,2]
[335273591,1724062242331,-500.0,0.00010997,2]
[335273593,1724062242340,-500.0,0.00010997,2]
[335273595,1724062242349,-4494.9,0.00010997,2]
[335273597,1724062242358,-1420.33,0.00010997,2]
[335273599,1724062242367,-5958.79,0.00010997,2]
[335273602,1724062242385,-22143.44,0.00010997,2]
[335273604,1724062242399,-2038.59,0.00010997,2]
[335273606,1724062242413,-500.0,0.00010997,2]
[335273608,1724062242423,-578.03,0.00010997,2]
[335273610,1724062242432,-578.03,0.00010997,2]
[335273612,1724062242442,-3954.44,0.00010997,2]
[335273613,1724062242452,-1312.75,0.00010997,2]
[335273615,1724062242462,-1312.75,0.00010997,2]
[335273617,1724062242471,-5021.26,0.00010997,2]
[335273619,1724062242481,-500.0,0.00010997,2]
[335273621,1724062242492,-500.0,0.00010998,2]
[335273623,1724062242502,-500.0,0.00010998,2]
[335273625,1724062242512,-500.0,0.00010998,2]
[335273627,1724062242522,-500.0,0.00010998,2]
[335273629,1724062242531,-500.0,0.00010998,2]
[335273631,1724062242541,-1134.5,0.00010998,2]
[335273633,1724062242551,-1134.5,0.00010998,2]
[335273634,1724062242562,-1134.5,0.00010998,2]
[335273636,1724062242571,-1134.5,0.00010998,2]
[335273638,1724062242581,-1134.5,0.00010998,2]
[335273640,1724062242592,-500.0,0.00010998,2]
[335273642,1724062242603,-500.0,0.00010998,2]
[335273644,1724062242613,-500.0,0.00010998,2]
[335273646,1724062242622,-500.0,0.00010998,2]
[335273648,1724062242632,-500.0,0.00010998,2]
[335273650,1724062242642,-706.98,0.00010998,2]
[335273652,1724062242655,-706.98,0.00010998,2]
[335273654,1724062242665,-706.98,0.00010998,2]
[335273656,1724062242674,-706.98,0.00010998,2]
[335273658,1724062242683,-706.98,0.00010998,2]
[335273660,1724062242692,-1652.75,0.00010998,2]
[335273662,1724062242701,-1652.75,0.00010998,2]
[335273664,1724062242711,-1652.75,0.00010998,2]
[335273666,1724062242720,-1652.75,0.00010998,2]
[335273668,1724062242730,-1652.75,0.00010998,2]
[335273670,1724062242740,-500.0,0.00010998,2]
[335273672,1724062242750,-500.0,0.00010998,2]
[335273674,1724062242759,-500.0,0.00010998,2]
[335273676,1724062242769,-500.0,0.00010998,2]
[335273678,1724062242778,-500.0,0.00010998,2]
[335273680,1724062242788,-2959.6,0.00010998,2]
[335273682,1724062242798,-2959.6,0.00010998,2]
[335273684,1724062242808,-2959.6,0.00010998,2]
[335273686,1724062242817,-2959.6,0.00010998,2]
[335273688,1724062242826,-5189.09,0.00010998,2]
[335273690,1724062242836,-5189.09,0.00010998,2]
[335273692,1724062242846,-5189.09,0.00010998,2]
[335273694,1724062242856,-4699.62053956,0.00010998,2]
[335273696,1724062242870,-489.46946044,0.00010998,2]
[335273698,1724062242880,-584.08,0.00010998,2]
[335273700,1724062242890,-584.08,0.00010998,2]
[335273702,1724062242900,-584.08,0.00010998,2]
[335273703,1724062242913,-584.08,0.00010998,2]
[335273705,1724062242923,-584.08,0.00010998,2]
[335273707,1724062242937,-815.57,0.00010998,2]
[335273708,1724062242947,-815.57,0.00010998,2]
[335273709,1724062242957,-815.57,0.00010998,2]
[335273710,1724062242967,-815.57,0.00010998,2]
[335273711,1724062242976,-815.57,0.00010998,2]
[335273712,1724062242986,-500.0,0.00010998,2]
[335273713,1724062242995,-382.28562988,0.00010998,2]
[335273714,1724062243004,-500.0,0.00010998,2]
[335273715,1724062243015,-500.0,0.00010998,2]
[335273716,1724062243025,-500.0,0.00010998,2]
[335273717,1724062243034,-500.0,0.00010998,2]
[335273718,1724062243044,-500.0,0.00010998,2]
[335273719,1724062243053,-500.0,0.00010998,2]
[335273720,1724062243063,-500.0,0.00010998,2]
[335273721,1724062243072,-500.0,0.00010998,2]
[335273724,1724062243082,-500.0,0.00010998,2]
[335273727,1724062243092,-257.30559592,0.00010998,2]
[335273729,1724062243101,-1119.81,0.00010998,2]
[335273731,1724062243110,-1119.81,0.00010998,2]
[335273733,1724062243120,-1119.81,0.00010998,2]
[335273734,1724062243129,-1119.81,0.00010998,2]
[335273736,1724062243138,-1119.81,0.00010998,2]
[335273738,1724062243148,-500.0,0.00010998,2]
[335273740,1724062243166,-4823.6,0.00010998,2]
[335273742,1724062243176,-4823.6,0.00010998,2]
[335273744,1724062243185,-4823.6,0.00010998,2]
[335273746,1724062243195,-4823.6,0.00010998,2]
[335273748,1724062243205,-4823.6,0.00010998,2]
[335273750,1724062243215,-2110.74,0.00010998,2]
[335273752,1724062243224,-2110.74,0.00010998,2]
[335273754,1724062243233,-2110.74,0.00010998,2]
[335273755,1724062243242,-2110.74,0.00010998,2]
[335273756,1724062243252,-2110.74,0.00010998,2]
[335273757,1724062243263,-221.55993051,0.00010998,2]
[335273758,1724062243274,-4494.9,0.00010998,2]
[335273759,1724062243283,-4494.9,0.00010998,2]
[335273760,1724062243293,-148.97330364,0.00010998,2]
[335273761,1724062243397,173.06,8.219e-05,2]
[335273768,1724062243460,-173.06,0.00010468,2]
[335273769,1724062243470,-500.0,0.00010987,2]
[335273771,1724062243480,-500.0,0.00010987,2]
[335273773,1724062243489,-432.29180376,0.00010987,2]
[335273776,1724062243507,-67.70819624,0.00010987,2]
[335273778,1724062243521,-300.0,0.00010987,2]
[335273780,1724062243536,-1271.35669636,0.00010998,2]